fUSD/lending_fUSD_20240718
["ID","MTS","AMOUNT","RATE_DAILY","PERIOD"]
[332560857,1721293963759,-500.0,0.0003589,14]
[332560858,1721293963768,-500.0,0.0003589,14]
[332560859,1721293963777,-500.0,0.0003589,14]
[332560860,1721293963786,-500.0,0.0003589,14]
[332560861,1721293963795,-500.0,0.0003589,14]
[332560862,1721293963805,-151.0,0.0003589,7]
[332560863,1721293963815,-500.0,0.0003589,14]
[332560864,1721293963825,-500.0,0.0003589,14]
[332560865,1721293963834,-500.0,0.00036063,14]
[332560866,1721293963844,-500.0,0.00036178,14]
[332560867,1721293963853,-1073.7085361,0.00036186,120]
[332560868,1721293963869,-500.0,0.0003589,14]
[332560869,1721293963878,-3428.94446645,0.00036186,120]
[332560870,1721293963889,-714.21663336,0.00036186,120]
[332560871,1721293963900,-5071.43030025,0.00036186,120]
[332560872,1721293963911,-12253.53659712,0.00036186,120]
[332560873,1721293963927,-29839.07291558,0.00036186,120]
[332560874,1721293963938,-26184.48853801,0.00036186,120]
[332560875,1721293963948,-16261.84444942,0.00036186,120]
[332560876,1721293963970,-500.0,0.0003589,14]
[332560877,1721293963980,-500.0,0.0003589,14]
[332560878,1721293963991,-815403.62045194,0.00036186,120]
[332560879,1721293964014,-500.0,0.00036178,14]
[332560880,1721293964026,-72000.0,0.00036186,120]
[332560881,1721293964037,-336.65,0.00036186,120]
[332560882,1721293964053,-500.0,0.0003589,14]
[332560883,1721293964064,-1068.79369127,0.00036186,120]
[332560884,1721293964076,-3539.2186,0.00036186,120]
[332560885,1721293964087,-610.37889277,0.00036186,120]
[332560886,1721293964099,-15000.0,0.00036186,120]
[332560887,1721293964111,-3142.2,0.00036186,120]
[332560888,1721293964123,-7190.0529822,0.00036186,120]
[332560889,1721293964147,-500.0,0.0003589,14]
[332560890,1721293964157,-500.0,0.0003589,14]
[332560891,1721293964168,-500.0,0.00036178,14]
[332560892,1721293964178,-57749.0,0.00036186,120]
[332560893,1721293964191,-3896.57759999,0.00036186,120]
[332560894,1721293964861,-500.0,0.0003589,14]
[332560895,1721293964871,-500.0,0.0003589,14]
[332560896,1721293965005,-500.0,0.0003589,14]
[332560897,1721293965016,-500.0,0.0003589,14]
[332560898,1721293965026,-500.0,0.0003589,14]
[332560899,1721293965036,-500.0,0.0003589,14]
[332560900,1721293965046,-500.0,0.0003589,14]
[332560901,1721293965056,-187.62,0.0003589,14]
[332560902,1721293965066,-407.96485922,0.0003589,14]
[332560903,1721293965080,-92.03514078,0.0003589,14]
[332560904,1721293965090,-500.0,0.00036063,14]
[332560905,1721293965100,-500.0,0.00036178,14]
[332560906,1721293965109,-500.0,0.00036178,14]
[332560907,1721293965119,-494.15,0.00036178,14]
[332560908,1721293965128,-500.0,0.00036178,14]
[332560909,1721293965139,-500.0,0.00036178,14]
[332560910,1721293965148,-500.0,0.00036178,14]
[332560911,1721293965158,-500.0,0.00036178,14]
[332560912,1721293965169,-432.4328354,0.00036178,14]
[332560913,1721293965180,-67.5671646,0.00036178,14]
[332560914,1721293965190,-500.0,0.00036178,14]
[332560915,1721293965198,-500.0,0.00036178,14]
[332560916,1721293965209,-14666.63478345,0.00036186,120]
[332560917,1721293965220,-5967.57370409,0.00036186,120]
[332560918,1721293965231,-1199.77912085,0.00036186,120]
[332560919,1721293965242,-2631.32749948,0.00036186,120]
[332560920,1721293965254,-85034.99841513,0.00036186,120]
[332560921,1721293965265,-4704.000003,0.00036186,120]
[332560922,1721293965276,-1407.0,0.00036186,120]
[332560923,1721293965353,-500.0,0.0003589,14]
[332560924,1721293965363,-500.0,0.0003589,14]
[332560925,1721293965372,-500.0,0.0003589,14]
[332560926,1721293965382,-500.0,0.0003589,14]
[332560927,1721293965403,-500.0,0.0003589,14]
[332560928,1721293965413,-500.0,0.0003589,14]
[332560929,1721293965424,-367.46409998,0.0003589,14]
[332560930,1721293965437,-132.53590002,0.0003589,14]
[332560931,1721293965448,-203.44494099,0.0003589,14]
[332560932,1721293965458,-168.78,0.0003589,14]
[332560933,1721293965468,-166.48,0.0003589,14]
[332560934,1721293965479,-263.87665899,0.0003589,14]
[332560935,1721293965491,-236.12334101,0.0003589,14]
[332560936,1721293965502,-323.66,0.00036178,14]
[332560937,1721293965512,-2809.81665901,0.00036186,120]
[332560938,1721293965524,-287.5596,0.00036186,120]
[332560939,1721293965537,-298.47000756,0.00036186,120]
[332560940,1721293965549,-1953.26874,0.00036186,120]
[332560941,1721293965640,-131423.67368303,0.00036186,120]
[332560942,1721293965685,-101408.85258999,0.00036186,120]
[332560943,1721293965723,-497320.15874454,0.00036186,120]
[332560944,1721293965760,-35676.81063902,0.00036186,120]
[332560945,1721293965796,-22931.69957721,0.00036186,30]
[332560946,1721293965834,-197623.46514404,0.00036186,120]
[332560947,1721293965870,-3931.05131585,0.00036186,120]
[332560948,1721293965905,-4353.31602774,0.00036186,120]
[332560949,1721293965939,-186707.96232708,0.00036186,60]
[332560950,1721293965974,-53264.59417062,0.00036186,60]
[332560951,1721293966009,-20000.0,0.00036186,120]
[332560952,1721293966042,-20000.0,0.00036186,90]
[332560953,1721293966078,-20000.0,0.00036186,120]
[332560954,1721293966111,-1006.4827482,0.00036186,120]
[332560955,1721293966145,-1328.25170274,0.00036186,120]
[332560956,1721293966178,-10499.69539785,0.00036186,120]
[332560957,1721293966213,-903.20005894,0.00036186,20]
[332560958,1721293966248,-10000.0,0.00036186,90]
[332560959,1721293966283,-10000.0,0.00036186,120]
[332560960,1721293966317,-10000.0,0.00036186,120]
[332560961,1721293966351,-1485.4956317,0.00036186,30]
[332560962,1721293966384,-167300.0,0.00036186,120]
[332560963,1721293966417,-150000.0,0.00036186,30]
[332560964,1721293966449,-29472.58244918,0.00036186,30]
[332560965,1721293966482,-23943.50425728,0.00036186,30]
[332560966,1721293966515,-23290.65253409,0.00036186,30]
[332560967,1721293966548,-116763.92284189,0.00036186,30]
[332560968,1721293966582,-149364.62815901,0.00036186,30]
[332560969,1721293974107,-623476.44779278,0.00036186,30]
[332560970,1721293974140,-77564.8269053,0.00036186,30]
[332560971,1721293974172,-61448.77699761,0.00036186,30]
[332560972,1721293974203,-31276.63364641,0.00036186,30]
[332560973,1721293974237,-19343.45200803,0.00036186,30]
[332560974,1721293974270,-36225.33934452,0.00036186,30]
[332560975,1721293974303,-35468.37519182,0.00036186,30]
[332560976,1721293974335,-54155.40088611,0.00036186,30]
[332560977,1721293974369,-1000.0,0.00036186,120]
[332560978,1721293974402,-3000.0,0.00036186,120]
[332560979,1721293974435,-3000.0,0.00036186,115]
[332560980,1721293974468,-3000.0,0.00036186,110]
[332560981,1721293974500,-3000.0,0.00036186,105]
[332560982,1721293974532,-3000.0,0.00036186,100]
[332560983,1721293974565,-3000.0,0.00036186,95]
[332560984,1721293974600,-3000.0,0.00036186,90]
[332560985,1721293974635,-3000.0,0.00036186,85]
[332560986,1721293974669,-404.41635562,0.00036186,120]
[332560987,1721293974702,-209.6733361,0.00036186,60]
[332560988,1721293974736,-517.0,0.00036186,30]
[332560989,1721293974769,-1281.71409191,0.00036186,120]
[332560990,1721293974801,-2615.59356412,0.00036186,120]
[332560991,1721293974834,-157.0,0.00036186,120]
[332560992,1721293974866,-610.99463909,0.00036186,30]
[332560993,1721293974898,-211.953355,0.00036186,30]
[332560994,1721293975147,-325.96978451,0.00036186,15]
[332560995,1721293975182,-25841.85714902,0.00036186,120]
[332560996,1721293975216,-2000.0,0.00036186,120]
[332560997,1721293975250,-30037.3167001,0.00036186,14]
[332560998,1721293975284,-1035.0,0.00036186,33]
[332560999,1721293975317,-2000.0,0.00036186,30]
[332561000,1721293975355,-24598.97772006,0.00036186,10]
[332561001,1721293975392,-23455.07205029,0.00036186,30]
[332561002,1721293975426,-64617.84460437,0.00036186,120]
[332561003,1721293975460,-9887.5347908,0.00036186,120]
[332561004,1721293975493,-2393.57482869,0.00036186,30]
[332561005,1721293975527,-1164.81604001,0.00036186,60]
[332561006,1721293975562,-1003.14553516,0.00036186,30]
[332561007,1721293975596,-1000.0,0.00036186,60]
[332561008,1721293975628,-1000.0,0.00036186,60]
[332561009,1721293975663,-1000.0,0.00036186,30]
[332561010,1721293975694,-1000.0,0.00036186,120]
[332561011,1721293975725,-1000.0,0.00036186,60]
[332561012,1721293975756,-1000.0,0.00036186,60]
[332561013,1721293975788,-1000.0,0.00036186,30]
[332561014,1721293975820,-1000.0,0.00036186,60]
[332561015,1721293975853,-1000.0,0.00036186,30]
[332561016,1721293975885,-1000.0,0.00036186,60]
[332561017,1721293975920,-191.0,0.00036186,30]
[332561018,1721293975960,-1000.0,0.00036186,30]
[332561019,1721293975994,-1000.0,0.00036186,60]
[332561020,1721293976028,-1000.0,0.00036186,60]
[332561021,1721293976060,-1000.0,0.00036186,30]
[332561022,1721293976093,-1000.0,0.00036186,60]
[332561023,1721293976126,-1000.0,0.00036186,30]
[332561024,1721293976157,-1000.0,0.00036186,30]
[332561025,1721293976189,-1000.0,0.00036186,30]
[332561026,1721293976222,-1000.0,0.00036186,30]
[332561027,1721293976256,-1000.0,0.00036186,30]
[332561028,1721293976289,-1000.0,0.00036186,60]
[332561029,1721293976322,-3543.77268298,0.00036186,60]
[332561030,1721293976356,-1000.0,0.00036186,30]
[332561031,1721293976389,-1000.0,0.00036186,60]
[332561032,1721293976421,-1000.0,0.00036186,60]
[332561033,1721293976453,-1000.0,0.00036186,30]
[332561034,1721293976485,-1000.0,0.00036186,30]
[332561035,1721293976518,-1000.0,0.00036186,60]
[332561036,1721293976549,-1000.0,0.00036186,30]
[332561037,1721293976582,-1000.0,0.00036186,30]
[332561038,1721293976618,-1000.0,0.00036186,60]
[332561039,1721293976649,-1000.0,0.00036186,30]
[332561040,1721293976680,-1000.0,0.00036186,60]
[332561041,1721293976713,-1000.0,0.00036186,60]
[332561042,1721293976744,-1000.0,0.00036186,60]
[332561043,1721293976776,-1000.0,0.00036186,30]
[332561044,1721293976808,-1000.0,0.00036186,60]
[332561045,1721293976839,-1000.0,0.00036186,30]
[332561046,1721293976870,-1000.0,0.00036186,60]
[332561047,1721293976901,-1000.0,0.00036186,60]
[332561048,1721293976935,-1000.0,0.00036186,30]
[332561049,1721293976971,-1000.0,0.00036186,30]
[332561050,1721293977005,-1000.0,0.00036186,30]
[332561051,1721293977036,-1039.46,0.00036186,60]
[332561052,1721293977068,-1615.47796176,0.00036186,90]
[332561053,1721293977100,-3690.60503377,0.00036186,120]
[332561054,1721293977131,-529.75893358,0.00036186,60]
[332561055,1721293977163,-836.96561914,0.00036186,30]
[332561056,1721293977196,-1000.0,0.00036186,30]
[332561057,1721293977228,-2881.43821938,0.00036186,120]
[332561058,1721293977262,-1615.44197896,0.00036186,120]
[332561059,1721293977293,-1184.86900043,0.00036186,30]
[332561060,1721293977325,-12994.62306669,0.00036186,120]
[332561061,1721293977359,-177849.41279143,0.00036186,30]
[332561062,1721293977391,-851.24951808,0.00036186,60]
[332561063,1721293977423,-2913.28187776,0.00036186,120]
[332561064,1721293977455,-819.81736466,0.00036186,30]
[332561065,1721293977514,-827.65864457,0.00036186,30]
[332561066,1721293977547,-13433.30118091,0.00036186,120]
[332561067,1721293977577,-14196.36367499,0.00036186,120]
[332561068,1721293977608,-891.50647165,0.00036186,30]
[332561069,1721293977641,-2024.82834717,0.00036186,120]
[332561070,1721293977672,-921.00481935,0.00036186,30]
[332561071,1721293977703,-2391.70848418,0.00036186,120]
[332561072,1721293977734,-2171.87632585,0.00036186,10]
[332561073,1721293977767,-947.61496214,0.00036186,120]
[332561074,1721293977800,-1111.19048295,0.00036186,120]
[332561075,1721293977832,-838.62510302,0.00036186,10]
[332561076,1721293977864,-1000.0,0.00036186,10]
[332561077,1721293977896,-698.60278505,0.00036186,120]
[332561078,1721293977931,-578.2560503,0.00036186,120]
[332561079,1721293977963,-35051.9939242,0.00036186,120]
[332561080,1721293977996,-451.18408128,0.00036186,60]
[332561081,1721293978032,-1452.12568752,0.00036186,120]
[332561082,1721293978063,-1262.35482722,0.00036186,120]
[332561083,1721293978094,-1337.97338414,0.00036186,120]
[332561084,1721293978129,-9196.66501603,0.00036186,120]
[332561085,1721293978163,-27862.60221465,0.00036186,120]
[332561086,1721293978197,-2674.16273793,0.00036186,120]
[332561087,1721293978231,-196.17001401,0.00036186,120]
[332561088,1721293978266,-580.67328843,0.00036186,120]
[332561089,1721293978299,-17310.17237488,0.00036186,120]
[332561090,1721293978332,-86656.48118223,0.00036186,120]
[332561091,1721293978364,-17131.41604334,0.00036186,120]
[332561092,1721293978396,-1169.67322175,0.00036186,120]
[332561093,1721293978428,-847.16769417,0.00036186,30]
[332561094,1721293978461,-3786.04043907,0.00036186,120]
[332561095,1721293978494,-330.28540828,0.00036186,120]
[332561096,1721293978527,-222.21281077,0.00036186,120]
[332561097,1721293978559,-950.83968061,0.00036186,120]
[332561098,1721293978592,-1474.98463982,0.00036186,120]
[332561099,1721293978630,-1933.07565484,0.00036186,120]
[332561100,1721293978660,-4016.92784367,0.00036186,30]
[332561101,1721293978692,-1577.22123183,0.00036186,120]
[332561102,1721293978725,-21655.16355823,0.00036186,120]
[332561103,1721293978754,-1264.3323306,0.00036186,120]
[332561104,1721293978784,-2160.59995763,0.00036186,120]
[332561105,1721293978815,-3142.26045491,0.00036186,120]
[332561106,1721293978844,-1822.69498147,0.00036186,60]
[332561107,1721293978874,-546.33993492,0.00036186,120]
[332561108,1721293978905,-1433.85568456,0.00036186,30]
[332561109,1721293978938,-2846.38983048,0.00036186,20]
[332561110,1721293978971,-1096.51259285,0.00036186,30]
[332561111,1721293979006,-7365.3553079,0.00036186,120]
[332561112,1721293979039,-215.81169632,0.00036186,120]
[332561113,1721293979071,-4213.36697995,0.00036186,120]
[332561114,1721293979104,-197.0,0.00036186,120]
[332561115,1721293979141,-500.0,0.00036186,120]
[332561116,1721293979172,-149798.35810394,0.00036186,30]
[332561117,1721293979203,-1976.0144,0.00036186,30]
[332561118,1721293979234,-68081.33046047,0.00036186,30]
[332561119,1721293979265,-303.2289809,0.00036186,120]
[332561120,1721293979296,-586.82133624,0.00036186,30]
[332561121,1721293979327,-288.23128278,0.00036186,10]
[332561122,1721293979363,-443.22916135,0.00036186,31]
[332561123,1721293979394,-163.18076498,0.00036186,120]
[332561124,1721293979424,-3549.86798774,0.00036186,120]
[332561125,1721293979455,-10700.64850262,0.00036186,30]
[332561126,1721293979484,-607.99811215,0.00036186,120]
[332561127,1721293979516,-1721.09487878,0.00036186,120]
[332561128,1721293979548,-395.21178078,0.00036186,30]
[332561129,1721293979582,-33349.18091255,0.00036186,120]
[332561130,1721293979617,-6185.09792605,0.00036186,120]
[332561131,1721293984074,-1346.48784757,0.00036186,120]
[332561132,1721293984112,-5100.0,0.00036186,31]
[332561133,1721293984147,-5100.0,0.00036186,32]
[332561134,1721293984180,-5100.0,0.00036186,33]
[332561135,1721293984212,-154.49027681,0.00036186,30]
[332561136,1721293984246,-6430.65469318,0.00036186,120]
[332561137,1721293984279,-1004.19813741,0.00036186,120]
[332561138,1721293984316,-709.570332,0.00036186,30]
[332561139,1721293984351,-6606.14831126,0.00036186,120]
[332561140,1721293984387,-329.9303572,0.00036186,62]
[332561141,1721293984420,-173.493642,0.00036186,30]
[332561142,1721293984453,-1040.0,0.00036186,120]
[332561143,1721293984490,-500.0,0.00036186,30]
[332561144,1721293984523,-1016.48812661,0.00036186,120]
[332561145,1721293984637,-2785.0,0.00036186,120]
[332561146,1721293984677,-819.0,0.00036186,120]
[332561147,1721293984711,-228.0,0.00036186,120]
[332561148,1721293984744,-500.0,0.00036186,12]
[332561149,1721293984777,-500.0,0.00036186,17]
[332561150,1721293984809,-500.0,0.00036186,120]
[332561151,1721293984842,-500.0,0.00036186,120]
[332561152,1721293984875,-500.0,0.00036186,120]
[332561153,1721293984908,-500.0,0.00036186,120]
[332561154,1721293984940,-500.0,0.00036186,120]
[332561155,1721293984975,-500.0,0.00036186,120]
[332561156,1721293985010,-500.0,0.00036186,120]
[332561157,1721293985043,-500.0,0.00036186,120]
[332561158,1721293985076,-203.49246376,0.00036186,120]
[332561159,1721293985114,-184.04870057,0.00036186,120]
[332561160,1721293985152,-793.0,0.00036186,30]
[332561161,1721293985187,-793.0,0.00036186,30]
[332561162,1721293985223,-793.0,0.00036186,30]
[332561163,1721293985259,-793.0,0.00036186,30]
[332561164,1721293985294,-793.0,0.00036186,30]
[332561165,1721293985328,-793.0,0.00036186,30]
[332561166,1721293985364,-793.0,0.00036186,30]
[332561167,1721293985400,-793.0,0.00036186,30]
[332561168,1721293985434,-793.0,0.00036186,30]
[332561169,1721293985469,-793.0,0.00036186,30]
[332561170,1721293985504,-793.0,0.00036186,30]
[332561171,1721293985538,-793.0,0.00036186,30]
[332561172,1721293985572,-793.0,0.00036186,30]
[332561173,1721293985607,-793.0,0.00036186,30]
[332561174,1721293985641,-793.0,0.00036186,30]
[332561175,1721293985675,-793.0,0.00036186,30]
[332561176,1721293985708,-793.0,0.00036186,30]
[332561177,1721293985740,-793.0,0.00036186,30]
[332561178,1721293985771,-793.0,0.00036186,30]
[332561179,1721293985802,-793.0,0.00036186,30]
[332561180,1721293985835,-793.0,0.00036186,30]
[332561181,1721293985868,-793.0,0.00036186,30]
[332561182,1721293985901,-793.0,0.00036186,30]
[332561183,1721293985936,-669.06113082,0.00036186,30]
[332561184,1721293985968,-793.0,0.00036186,30]
[332561187,1721294002760,-214.0,0.0002939,30]
[332561188,1721294002795,-382.05581821,0.0003,30]
[332561189,1721294002829,-164.11705754,0.0003,30]
[332561190,1721294002865,-214.0,0.0003083,30]
[332561191,1721294002899,-214.0,0.0003227,30]
[332561192,1721294002937,-304540.50598524,0.000329,30]
[332561193,1721294002972,-214.0,0.0003371,30]
[332561194,1721294003005,-214.0,0.0003514,30]
[332561195,1721294003039,-385.66,0.0003588,10]
[332561196,1721294003070,-538.77,0.0003588,10]
[332561197,1721294003104,-500.0,0.0003589,14]
[332561198,1721294003142,-500.0,0.0003589,14]
[332561199,1721294003182,-500.0,0.0003589,14]
[332561200,1721294003220,-500.0,0.0003589,14]
[332561201,1721294003261,-500.0,0.0003589,14]
[332561202,1721294003298,-500.0,0.0003589,14]
[332561203,1721294003334,-500.0,0.0003589,14]
[332561204,1721294003370,-500.0,0.0003589,14]
[332561205,1721294003403,-500.0,0.0003589,14]
[332561206,1721294003439,-500.0,0.0003589,14]
[332561207,1721294003475,-500.0,0.0003589,14]
[332561208,1721294003510,-500.0,0.0003589,14]
[332561209,1721294003545,-500.0,0.0003589,14]
[332561210,1721294003579,-500.0,0.0003589,14]
[332561211,1721294003617,-500.0,0.0003589,14]
[332561212,1721294003651,-500.0,0.0003589,14]
[332561213,1721294003687,-500.0,0.0003589,14]
[332561214,1721294003722,-500.0,0.0003589,14]
[332561215,1721294003758,-500.0,0.0003589,14]
[332561216,1721294003795,-500.0,0.0003589,14]
[332561217,1721294003830,-500.0,0.0003589,14]
[332561218,1721294003868,-513.22,0.0003589,14]
[332561219,1721294003907,-500.0,0.0003589,14]
[332561220,1721294003946,-500.0,0.0003589,14]
[332561221,1721294003984,-500.0,0.0003589,14]
[332561222,1721294004023,-500.0,0.0003589,14]
[332561223,1721294004062,-500.0,0.0003589,14]
[332561224,1721294004099,-500.0,0.0003589,14]
[332561225,1721294004136,-500.0,0.0003589,14]
[332561226,1721294004172,-347.72,0.0003589,14]
[332561227,1721294004207,-500.0,0.0003589,14]
[332561228,1721294004242,-500.0,0.0003589,14]
[332561229,1721294004277,-500.0,0.0003589,14]
[332561230,1721294004315,-500.0,0.0003589,14]
[332561231,1721294004355,-333.91,0.0003589,14]
[332561232,1721294004392,-500.0,0.0003589,14]
[332561233,1721294004428,-500.0,0.0003589,14]
[332561234,1721294004463,-500.0,0.0003589,14]
[332561235,1721294004497,-500.0,0.0003589,14]
[332561236,1721294004532,-500.0,0.0003589,14]
[332561237,1721294004566,-500.0,0.0003589,14]
[332561238,1721294004601,-500.0,0.0003589,14]
[332561239,1721294004637,-192.52,0.0003589,14]
[332561240,1721294004671,-500.0,0.0003589,14]
[332561241,1721294004706,-500.0,0.0003589,14]
[332561242,1721294004740,-500.0,0.0003589,14]
[332561243,1721294004775,-500.0,0.0003589,14]
[332561244,1721294004808,-500.0,0.0003589,14]
[332561245,1721294004844,-500.0,0.0003589,14]
[332561246,1721294004881,-500.0,0.0003589,14]
[332561247,1721294004914,-500.0,0.0003589,14]
[332561248,1721294004948,-500.0,0.0003589,14]
[332561249,1721294004982,-500.0,0.0003589,14]
[332561250,1721294005016,-500.0,0.0003589,14]
[332561251,1721294005076,-500.0,0.0003589,14]
[332561252,1721294005111,-500.0,0.0003589,14]
[332561253,1721294005143,-500.0,0.0003589,14]
[332561254,1721294005177,-500.0,0.0003589,14]
[332561255,1721294005210,-500.0,0.0003589,14]
[332561256,1721294005245,-500.0,0.0003589,14]
[332561257,1721294005279,-500.0,0.0003589,14]
[332561258,1721294005315,-500.0,0.0003589,14]
[332561259,1721294005352,-500.0,0.0003589,14]
[332561260,1721294005390,-500.0,0.0003589,14]
[332561261,1721294005426,-500.0,0.0003589,14]
[332561262,1721294005463,-353.14,0.0003589,14]
[332561263,1721294005498,-500.0,0.0003589,14]
[332561264,1721294005534,-500.0,0.0003589,14]
[332561265,1721294005567,-500.0,0.0003589,14]
[332561266,1721294005602,-500.0,0.0003589,14]
[332561267,1721294005639,-500.0,0.0003589,14]
[332561268,1721294005676,-357.44,0.0003589,14]
[332561269,1721294005710,-500.0,0.0003589,14]
[332561270,1721294005743,-500.0,0.0003589,14]
[332561271,1721294005778,-500.0,0.0003589,14]
[332561272,1721294005811,-500.0,0.0003589,14]
[332561273,1721294005842,-500.0,0.0003589,14]
[332561275,1721294005875,-500.0,0.0003589,14]
[332561276,1721294005909,-500.0,0.0003589,14]
[332561277,1721294005942,-500.0,0.0003589,14]
[332561278,1721294005978,-500.0,0.0003589,14]
[332561279,1721294006012,-500.0,0.0003589,14]
[332561280,1721294006051,-500.0,0.0003589,14]
[332561281,1721294006087,-500.0,0.0003589,14]
[332561282,1721294006124,-500.0,0.0003589,14]
[332561283,1721294006157,-500.0,0.0003589,14]
[332561284,1721294006190,-511.49,0.0003589,14]
[332561285,1721294006224,-500.0,0.0003589,14]
[332561286,1721294006260,-500.0,0.0003589,14]
[332561287,1721294006293,-500.0,0.0003589,14]
[332561288,1721294006326,-500.0,0.0003589,14]
[332561289,1721294006359,-500.0,0.0003589,14]
[332561290,1721294006391,-500.0,0.0003589,14]
[332561291,1721294006423,-500.0,0.0003589,14]
[332561292,1721294006455,-500.0,0.0003589,14]
[332561293,1721294006487,-500.0,0.0003589,14]
[332561294,1721294006522,-500.0,0.0003589,14]
[332561295,1721294006555,-352.28,0.0003589,14]
[332561296,1721294006588,-500.0,0.0003589,14]
[332561297,1721294006622,-500.0,0.0003589,14]
[332561298,1721294006658,-500.0,0.0003589,14]
[332561299,1721294006692,-158.69,0.0003589,14]
[332561300,1721294006726,-500.0,0.0003589,14]
[332561301,1721294006762,-500.0,0.0003589,14]
[332561302,1721294006797,-500.0,0.0003589,14]
[332561303,1721294006831,-500.0,0.0003589,14]
[332561304,1721294006867,-500.0,0.0003589,14]
[332561305,1721294006901,-500.0,0.0003589,14]
[332561306,1721294006937,-500.0,0.0003589,14]
[332561307,1721294006974,-500.0,0.0003589,14]
[332561308,1721294007008,-500.0,0.0003589,14]
[332561309,1721294007046,-500.0,0.0003589,14]
[332561310,1721294007079,-500.0,0.0003589,14]
[332561311,1721294007119,-500.0,0.0003589,14]
[332561312,1721294007153,-500.0,0.0003589,14]
[332561313,1721294007189,-500.0,0.0003589,14]
[332561314,1721294007226,-500.0,0.0003589,14]
[332561315,1721294007261,-500.0,0.0003589,14]
[332561316,1721294007295,-455.43,0.0003589,14]
[332561317,1721294007329,-500.0,0.0003589,14]
[332561318,1721294007364,-500.0,0.0003589,14]
[332561319,1721294007399,-500.0,0.0003589,14]
[332561320,1721294007435,-500.0,0.0003589,14]
[332561321,1721294007471,-500.0,0.0003589,14]
[332561322,1721294007506,-500.0,0.0003589,14]
[332561323,1721294007543,-500.0,0.0003589,14]
[332561324,1721294007576,-500.0,0.0003589,14]
[332561325,1721294007609,-500.0,0.0003589,14]
[332561326,1721294007644,-500.0,0.0003589,14]
[332561327,1721294007677,-500.0,0.0003589,14]
[332561328,1721294007711,-500.0,0.0003589,14]
[332561329,1721294007746,-500.0,0.0003589,14]
[332561330,1721294007784,-500.0,0.0003589,14]
[332561331,1721294007819,-500.0,0.0003589,14]
[332561332,1721294007856,-500.0,0.0003589,14]
[332561333,1721294007890,-500.0,0.0003589,14]
[332561334,1721294007923,-159.14,0.0003589,14]
[332561335,1721294007963,-500.0,0.0003589,14]
[332561336,1721294007999,-482.3,0.0003589,14]
[332561337,1721294008250,-500.0,0.0003589,14]
[332561338,1721294008288,-500.0,0.0003589,14]
[332561339,1721294008322,-500.0,0.0003589,14]
[332561340,1721294008356,-500.0,0.0003589,14]
[332561341,1721294008389,-500.0,0.0003589,14]
[332561342,1721294008420,-500.0,0.0003589,14]
[332561343,1721294008452,-500.0,0.0003589,14]
[332561344,1721294008487,-500.0,0.0003589,14]
[332561345,1721294008522,-500.0,0.0003589,14]
[332561346,1721294008555,-500.0,0.0003589,14]
[332561347,1721294008587,-500.0,0.0003589,14]
[332561348,1721294008620,-500.0,0.0003589,14]
[332561349,1721294008655,-500.0,0.0003589,14]
[332561350,1721294008688,-196.86,0.0003589,14]
[332561351,1721294008722,-500.0,0.0003589,14]
[332561352,1721294008755,-500.0,0.0003589,14]
[332561353,1721294008787,-500.0,0.0003589,14]
[332561354,1721294008818,-500.0,0.0003589,14]
[332561355,1721294008855,-500.0,0.0003589,14]
[332561356,1721294008888,-500.0,0.0003589,14]
[332561357,1721294008921,-500.0,0.0003589,14]
[332561358,1721294009073,-503.14224535,0.0003589,14]
[332561359,1721294009111,-500.0,0.0003589,14]